fUSD/lending_fUSD_20250128
["ID","MTS","AMOUNT","RATE_DAILY","PERIOD"]
[350732690,1738091497028,-3164.75,0.00019178,2]
[350732691,1738091497038,-500.0,0.00019178,2]
[350732692,1738091497047,-1862.55,0.00019178,2]
[350732693,1738091497058,-408.29944609,0.00019178,2]
[350732694,1738091497067,-4184.57,0.00019178,2]
[350732695,1738091497077,-3637.35,0.00019178,2]
[350732696,1738091497089,-500.0,0.00019178,2]
[350732697,1738091497099,-3164.75,0.00019178,2]
[350732698,1738091497109,-1862.55,0.00019178,2]
[350732699,1738091497118,-500.0,0.00019178,2]
[350732700,1738091497128,-4184.57,0.00019178,2]
[350732701,1738091497138,-3637.35,0.00019178,2]
[350732702,1738091497148,-500.0,0.00019178,2]
[350732703,1738091497157,-500.0,0.00019178,2]
[350732704,1738091497167,-3164.75,0.00019178,2]
[350732705,1738091497177,-500.0,0.00019178,2]
[350732706,1738091497187,-1862.55,0.00019178,2]
[350732707,1738091497197,-4184.57,0.00019178,2]
[350732708,1738091497207,-3637.35,0.00019178,2]
[350732709,1738091497217,-512.67774885,0.00019178,2]
[350732710,1738091497227,-3164.75,0.00019178,2]
[350732711,1738091497238,-1862.55,0.00019178,2]
[350732712,1738091497247,-500.0,0.00019178,2]
[350732713,1738091497257,-500.0,0.00019178,2]
[350732714,1738091497267,-3637.35,0.00019178,2]
[350732715,1738091497276,-4184.57,0.00019178,2]
[350732716,1738091497287,-1862.55,0.00019178,2]
[350732717,1738091497296,-3164.75,0.00019178,2]
[350732718,1738091497306,-3637.35,0.00019178,2]
[350732719,1738091497315,-500.0,0.00019178,2]
[350732720,1738091497325,-500.0,0.00019178,2]
[350732721,1738091497335,-3164.75,0.00019178,2]
[350732722,1738091497345,-1862.55,0.00019178,2]
[350732723,1738091497354,-3637.35,0.00019178,2]
[350732724,1738091497365,-500.0,0.00019178,2]
[350732725,1738091497374,-500.0,0.00019178,2]
[350732726,1738091497384,-500.0,0.00019178,2]
[350732727,1738091497394,-3164.75,0.00019178,2]
[350732728,1738091497404,-1862.55,0.00019178,2]
[350732729,1738091497414,-4184.57,0.00019178,2]
[350732730,1738091497423,-500.0,0.00019178,2]
[350732731,1738091497433,-500.0,0.00019178,2]
[350732732,1738091497443,-3164.75,0.00019178,2]
[350732733,1738091497453,-1862.55,0.00019178,2]
[350732734,1738091497463,-500.0,0.00019178,2]
[350732735,1738091497473,-4184.57,0.00019178,2]
[350732736,1738091497483,-500.0,0.00019178,2]
[350732737,1738091497495,-3637.35,0.00019178,2]
[350732738,1738091497507,-3164.75,0.00019178,2]
[350732739,1738091497517,-1862.55,0.00019178,2]
[350732740,1738091497528,-500.0,0.00019178,2]
[350732741,1738091497538,-500.0,0.00019178,2]
[350732742,1738091497548,-4184.57,0.00019178,2]
[350732743,1738091497559,-3637.35,0.00019178,2]
[350732744,1738091497569,-3164.75,0.00019178,2]
[350732745,1738091497579,-500.0,0.00019178,2]
[350732746,1738091497589,-1862.55,0.00019178,2]
[350732747,1738091497599,-517.10646,0.00019178,2]
[350732748,1738091497609,-4184.57,0.00019178,2]
[350732749,1738091497619,-500.0,0.00019178,2]
[350732750,1738091497629,-3637.35,0.00019178,2]
[350732751,1738091497640,-3164.75,0.00019178,2]
[350732752,1738091497651,-500.0,0.00019178,2]
[350732753,1738091497661,-4184.57,0.00019178,2]
[350732754,1738091497671,-3637.35,0.00019178,2]
[350732755,1738091497680,-3164.75,0.00019178,2]
[350732756,1738091497690,-1862.55,0.00019178,2]
[350732757,1738091497700,-500.0,0.00019178,2]
[350732758,1738091497709,-500.0,0.00019178,2]
[350732759,1738091497720,-4184.57,0.00019178,2]
[350732760,1738091497733,-1862.55,0.00019178,2]
[350732761,1738091497743,-3164.75,0.00019178,2]
[350732762,1738091497753,-3637.35,0.00019178,2]
[350732763,1738091497763,-500.0,0.00019178,2]
[350732764,1738091497773,-500.0,0.00019178,2]
[350732765,1738091497783,-500.0,0.00019178,2]
[350732766,1738091497793,-1862.55,0.00019178,2]
[350732767,1738091497802,-3637.35,0.00019178,2]
[350732768,1738091497812,-3164.81808573,0.00019178,2]
[350732769,1738091497822,-633.2,0.00019178,2]
[350732770,1738091497836,-500.0,0.00019178,2]
[350732771,1738091497846,-1862.55,0.00019178,2]
[350732772,1738091497857,-4184.57,0.00019178,2]
[350732773,1738091497867,-500.0,0.00019178,2]
[350732774,1738091497876,-3637.35,0.00019178,2]
[350732775,1738091497886,-500.0,0.00019178,2]
[350732776,1738091497896,-1862.55,0.00019178,2]
[350732777,1738091497905,-4184.57,0.00019178,2]
[350732778,1738091497916,-310.8919895,0.00019178,2]
[350732779,1738091497926,-3637.35,0.00019178,2]
[350732780,1738091497936,-1862.55,0.00019178,2]
[350732781,1738091497946,-4184.57,0.00019178,2]
[350732782,1738091497956,-514.9562661,0.00019178,2]
[350732783,1738091497966,-3637.35,0.00019178,2]
[350732784,1738091497977,-1862.55,0.00019178,2]
[350732785,1738091497988,-4184.57,0.00019178,2]
[350732786,1738091497999,-3637.35,0.00019178,2]
[350732787,1738091498009,-1862.55,0.00019178,2]
[350732788,1738091498021,-502.42925851,0.00019178,2]
[350732789,1738091498032,-3637.35,0.00019178,2]
[350732790,1738091498042,-4184.57,0.00019178,2]
[350732791,1738091498052,-3637.35,0.00019178,2]
[350732792,1738091498063,-549.05664532,0.00019178,2]
[350732793,1738091500228,-696.08230245,0.00019178,2]
[350732794,1738091500244,-617.41105223,0.00019178,2]
[350732795,1738091500254,-4184.61518774,0.00019178,2]
[350732796,1738091500264,-933.43169853,0.00019178,2]
[350732797,1738091500276,-1238.88288197,0.00019178,2]
[350732798,1738091500292,-935.34982,0.00019178,2]
[350732799,1738091500305,-529.6855995,0.00019178,2]
[350732800,1738091500318,-155.4944005,0.00019178,2]
[350732801,1738091500340,-1707.0555995,0.00019178,2]
[350732802,1738091500351,-3772.91,0.00019178,2]
[350732803,1738091500362,-1862.55,0.00019178,2]
[350732804,1738091500372,-3230.68,0.00019178,2]
[350732805,1738091500382,-500.0,0.00019178,2]
[350732806,1738091500392,-3772.91,0.00019178,2]
[350732807,1738091500401,-1862.55,0.00019178,2]
[350732808,1738091500411,-3637.35,0.00019178,2]
[350732809,1738091500420,-500.0,0.00019178,2]
[350732810,1738091500430,-3230.68,0.00019178,2]
[350732811,1738091500439,-3772.91,0.00019178,2]
[350732812,1738091500449,-1862.78187629,0.00019178,2]
[350732813,1738091500459,-3230.68,0.00019178,2]
[350732814,1738091500470,-500.0,0.00019178,2]
[350732815,1738091500480,-3637.476606,0.00019178,2]
[350732816,1738091500492,-3772.91,0.00019178,2]
[350732817,1738091500502,-3230.68,0.00019178,2]
[350732818,1738091500512,-500.0,0.00019178,2]
[350732819,1738091500521,-3772.91,0.00019178,2]
[350732820,1738091500530,-750.31,0.00019178,2]
[350732821,1738091500539,-3230.68,0.00019178,2]
[350732822,1738091500549,-500.0,0.00019178,2]
[350732823,1738091500559,-3772.91,0.00019178,2]
[350732824,1738091500569,-750.31,0.00019178,2]
[350732825,1738091500578,-500.0,0.00019178,2]
[350732826,1738091500588,-500.0,0.00019178,2]
[350732827,1738091500597,-3772.91,0.00019178,2]
[350732828,1738091500608,-750.31,0.00019178,2]
[350732829,1738091500618,-500.0,0.00019178,2]
[350732830,1738091500628,-3772.91,0.00019178,2]
[350732831,1738091500639,-1367.85,0.00019178,2]
[350732832,1738091500651,-750.31,0.00019178,2]
[350732833,1738091500661,-353.55,0.00019178,2]
[350732834,1738091500671,-500.0,0.00019178,2]
[350732835,1738091500692,-3230.68,0.00019178,2]
[350732836,1738091500703,-3772.91,0.00019178,2]
[350732837,1738091500712,-1367.85,0.00019178,2]
[350732838,1738091500723,-750.31,0.00019178,2]
[350732839,1738091500734,-500.0,0.00019178,2]
[350732840,1738091500747,-3230.68,0.00019178,2]
[350732841,1738091500756,-1367.85,0.00019178,2]
[350732842,1738091500766,-5079.29,0.00019178,2]
[350732843,1738091500776,-3772.91,0.00019178,2]
[350732844,1738091500785,-750.31,0.00019178,2]
[350732845,1738091500795,-510.65326852,0.00019178,2]
[350732846,1738091500805,-500.0,0.00019178,2]
[350732847,1738091500814,-3230.68,0.00019178,2]
[350732848,1738091500824,-1367.85,0.00019178,2]
[350732849,1738091500834,-2922.50769747,0.00019178,2]
[350732850,1738091500854,-1020.0,0.00019178,2]
[350732851,1738091501022,-980.65436877,0.00019178,2]
[350732852,1738091501035,-156.12793376,0.00019178,2]
[350732853,1738091501046,-1421.22754252,0.00019178,2]
[350732854,1738091501263,-2351.68245748,0.00019178,2]
[350732855,1738091501273,-750.31,0.00019178,2]
[350732856,1738091501285,-500.0,0.00019178,2]
[350732857,1738091501295,-1155.80732796,0.00019178,2]
[350732858,1738091501742,-2074.87267204,0.00019178,2]
[350732859,1738091501754,-295.19551796,0.00019178,2]
[350732865,1738092308284,199762.5177851,0.00012,2]
[350732866,1738092308318,2144926.42858163,0.00012,2]
[350732884,1738092391976,8735.08398621,0.00011,2]
[350732887,1738092483122,3532045.72055373,0.0001,2]
[350732888,1738092486339,510.53553062,0.00011876,2]
[350732889,1738092486634,510.53553062,0.00011837,2]
[350732890,1738092486956,510.53553062,0.00011846,2]
[350732891,1738092487265,510.53553062,0.00011915,2]
[350732892,1738092487570,510.53553062,0.00011851,2]
[350732894,1738092494046,200.0,0.0001183,2]
[350732895,1738092494426,200.0,0.00011859,2]
[350732901,1738092552149,-150.0,0.00014428,2]
[350732902,1738092552172,-4300.045936,0.000146,5]
[350732916,1738092632371,-1258.0,0.000145,5]
[350732917,1738092632381,-150.0,0.00014728,2]
[350732918,1738092632391,-150.0,0.00014957,2]
[350732919,1738092632402,-300.0,0.00014999,2]
[350732920,1738092632412,-2207.6599,0.00015,10]
[350732921,1738092632424,-7792.3401,0.00015,10]
[350732922,1738092632434,-2571.50152974,0.00015,2]
[350732923,1738092632444,-150.0,0.0001551,2]
[350732924,1738092632453,-279.05,0.00015595,2]
[350732925,1738092632463,-150.0,0.00015871,2]
[350732926,1738092632474,-150.0,0.0001595,2]
[350732927,1738092632484,-800.0,0.00016288,2]
[350732928,1738092632494,-420.0,0.00016416,2]
[350732929,1738092632503,-634.13,0.0001736,2]
[350732930,1738092632513,-500.0,0.00017384,2]
[350732931,1738092632523,-500.0,0.00017492,2]
[350732932,1738092632533,-557.4,0.00017545,2]
[350732933,1738092632543,-200.0,0.00017548,2]
[350732934,1738092632552,-3148.91,0.00017657,2]
[350732935,1738092632562,-800.0,0.00017658,2]
[350732936,1738092632572,-379.19740016,0.00017673,2]
[350732937,1738092632584,-590.62259984,0.00017673,2]
[350732938,1738092632594,-279.05,0.00017859,2]
[350732939,1738092632603,-171.46,0.00017918,2]
[350732940,1738092632613,-1600.87706015,0.00018,2]
[350732942,1738092632623,-1000.0,0.00018031,2]
[350732944,1738092632634,-2327.01,0.00018044,2]
[350732946,1738092632643,-150.0,0.00018113,2]
[350732948,1738092632654,-185.9,0.00018205,30]
[350732950,1738092632663,-800.0,0.00018754,2]
[350732952,1738092632672,-2575.57722047,0.000188,2]
[350732954,1738092632682,-2575.57722047,0.00018856,2]
[350732956,1738092632691,-5000.0,0.000189,2]
[350732958,1738092632701,-26883.9255,0.000189,2]
[350732960,1738092632711,-239.46079842,0.000189,2]
[350732962,1738092632722,-161.81130049,0.000189,2]
[350732964,1738092632732,-158.94068353,0.000189,2]
[350732966,1738092632742,-179.43683034,0.000189,2]
[350732968,1738092632751,-254.74171817,0.000189,2]
[350732970,1738092632761,-5874.08592476,0.000189,2]
[350732972,1738092632771,-163.3057152,0.000189,2]
[350732974,1738092632780,-2575.57722047,0.00018911,2]
[350732976,1738092632790,-152.81142041,0.00018953,2]
[350732978,1738092632800,-2575.57722047,0.00018967,2]
[350732980,1738092632809,-350.36472717,0.00018973,2]
[350732982,1738092632821,-149.63527283,0.00018973,2]
[350732984,1738092632831,-305.75585395,0.00018973,2]
[350732986,1738092632840,-378.708,0.00018978,2]
[350732988,1738092632850,-150.0,0.00018987,2]
[350732990,1738092632860,-619.52181544,0.0001899,2]
[350732993,1738092632877,-2380.47818456,0.0001899,2]
[350732995,1738092632887,-150.0,0.00018997,2]
[350732997,1738092632896,-701.21,0.00018999,2]
[350732999,1738092632906,-289.169,0.00018999,2]
[350733001,1738092632915,-163.04738686,0.00018999,2]
[350733003,1738092632924,-150.0,0.00018999,2]
[350733005,1738092632933,-536.12,0.00018999,2]
[350733007,1738092632943,-300.0,0.00018999,2]
[350733009,1738092632953,-300.0,0.00018999,2]
[350733011,1738092632962,-300.0,0.00018999,2]
[350733013,1738092632973,-300.0,0.00018999,2]
[350733015,1738092632983,-300.0,0.00018999,2]
[350733017,1738092632994,-4565.91736578,0.00019,2]
[350733019,1738092633006,-5230.59094497,0.00019,2]
[350733021,1738092633018,-4208.43149527,0.00019,2]
[350733486,1738092637822,-410.8673172,0.000189,2]
[350733488,1738092637832,-9529.40631054,0.00019,2]
[350733494,1738092637880,-548.14668743,0.00019,2]
[350733500,1738092637934,-74052.83265053,0.00019,2]
[350733502,1738092637944,-1212853.18855477,0.00019,2]
[350733505,1738092637955,-341.24596483,0.00019,2]
[350733507,1738092637967,-15878.59202272,0.00019,2]
[350733509,1738092637980,-50200.0,0.00019,2]
[350733512,1738092638001,-1684.24487212,0.00019,2]
[350733514,1738092638013,-13136.5,0.00019,2]
[350733524,1738092638102,-18435.39607455,0.00019,2]
[350733526,1738092638114,-298.99907905,0.00019,2]
[350733540,1738092638233,-6703.99445292,0.00019,2]
[350733542,1738092638246,-548.77021225,0.00019,2]
[350733544,1738092638258,-8390.41828939,0.00019,2]
[350733546,1738092638271,-10453.75048581,0.00019,2]
[350733672,1738092639925,-1533.7470264,0.00019,2]
[350733673,1738092639979,-530.429,0.00019,2]
[350733674,1738092639992,-1686.2,0.00019,2]
[350733675,1738092640004,-489.08740638,0.00019,2]
[350733676,1738092640016,-262.93,0.00019,2]
[350733677,1738092640032,-1048.6,0.00019,2]
[350733678,1738092640048,-351.03411824,0.00019,2]
[350733679,1738092640060,-502.79153865,0.00019,2]
[350733680,1738092640072,-13392.44166678,0.00019,2]
[350733681,1738092640083,-17426.81549082,0.00019,2]
[350733682,1738092640097,-36174.47821255,0.00019,2]
[350733683,1738092640112,-14185.30066,0.00019,2]
[350733684,1738092640130,-3104.95938,0.00019,2]
[350733685,1738092640142,-1474.3842045,0.00019,2]
[350733686,1738092640155,-982.80120554,0.00019,2]
[350733687,1738092640167,-760.55921756,0.00019,2]
[350733688,1738092640178,-4856.5208866,0.00019,2]
[350733689,1738092640200,-2433146.98142409,0.00019,2]
[350733690,1738092640212,-5215.79247951,0.00019,2]
[350733691,1738092640226,-11050.64695583,0.00019,2]
[350733692,1738092640241,-617.74561553,0.00019,2]
[350733693,1738092640253,-415.1,0.00019,2]
[350733694,1738092640278,-2766.488705,0.00019,2]
[350733695,1738092640321,-4861.31455,0.00019,2]
[350733696,1738092640332,-664.41871925,0.00019,2]
[350733697,1738092640347,-6896.0,0.00019,2]
[350733698,1738092640358,-774.6985844,0.00019,2]
[350733699,1738092640370,-91270.0,0.00019,2]
[350733700,1738092640382,-11850.91204221,0.00019,2]
[350733796,1738092642907,-500.0,0.00018199,2]
[350733797,1738092642917,-11376.39998308,0.00019,2]
[350733798,1738092642929,-298.3043,0.00019,2]
[350733799,1738092642942,-9629.4932637,0.00019,2]
[350733800,1738092642964,-531.3665955,0.00019,2]
[350733801,1738092642978,-7493.97457935,0.00019,2]
[350733802,1738092642990,-303.17662,0.00019,2]
[350733803,1738092643002,-293.05940177,0.00019,2]
[350733804,1738092643018,-742.32025558,0.00019,2]
[350733805,1738092643034,-10633.9996,0.00019,2]
[350733806,1738092643046,-1043.082,0.00019,2]
[350733807,1738092643058,-1865.37204143,0.00019,2]
[350733808,1738092643095,-126412.50000001,0.00019,2]
[350733809,1738092643109,-325443.87867898,0.00019,2]
[350733810,1738092643120,-2625.0367,0.00019,2]
[350733811,1738092643148,-340.16374939,0.00019,2]
[350733812,1738092643184,-61630.12096599,0.00019,2]
[350733813,1738092643196,-9412.55700053,0.00019,2]
[350733814,1738092643239,-9600.0,0.00019,2]
[350733816,1738092643251,-913.5188708,0.00019,2]
[350733821,1738092645879,-2385.91333527,0.00019,2]
[350733822,1738092645936,-323.31009962,0.00019,2]
[350733823,1738092645948,-33062.90386316,0.00019,2]
[350733824,1738092645993,-31524.0,0.00019,2]
[350733825,1738092646006,-432.09496654,0.00019,2]
[350733826,1738092646050,-1884.55000001,0.00019,2]
[350733827,1738092646062,-2112.54221652,0.00019,2]
[350733828,1738092646075,-1670.0,0.00019,2]
[350733829,1738092646095,-6401.99999999,0.00019,2]
[350733830,1738092646111,-332396.08181353,0.00019,2]
[350733831,1738092646121,-500683.14619108,0.00019,2]
[350733832,1738092646132,-5010.0506184,0.00019,2]
[350733833,1738092646143,-8224.3540861,0.00019,2]
[350733834,1738092646155,-9495.0,0.00019,2]
[350733835,1738092646167,-941.8085193,0.00019,2]
[350733836,1738092646179,-4958.317,0.00019,2]
[350733837,1738092646191,-1200.0,0.00019,2]
[350733838,1738092646212,-277987.46653226,0.00019,2]
[350733839,1738092646224,-21879.27278684,0.00019,2]
[350733840,1738092646236,-8249.99982067,0.00019,2]
[350733841,1738092646248,-153802.15104928,0.00019,2]
[350733842,1738092646259,-5132.2190332,0.00019,2]
[350733843,1738092646271,-2112.7,0.00019,2]
[350733844,1738092646288,-394.10692852,0.00019,2]
[350733845,1738092646299,-313.06330969,0.00019,2]
[350733846,1738092646310,-1364.749998,0.00019,2]
[350733847,1738092646322,-676.53678375,0.00019,2]
[350733848,1738092646334,-4056.77195378,0.00019,2]
[350733849,1738092646345,-1957.704,0.00019,2]
[350733850,1738092665835,9139.21247745,0.00011842,2]
[350733851,1738092666115,9139.21247745,0.00011829,2]
[350733852,1738092666410,9139.21247745,0.00011884,2]
[350733853,1738092666798,9139.21247745,0.00011844,2]
[350733854,1738092667141,9139.21247745,0.00011841,2]
[350733855,1738092677792,200.0,0.00011884,2]
[350733856,1738092678091,200.0,0.00011849,2]
[350733857,1738092686075,200.0,0.00011856,2]
[350733858,1738092964171,25900.81405293,0.00011908,2]
[350733859,1738092964469,25900.81405293,0.00011828,2]
[350733860,1738092964794,25900.81405293,0.00011825,2]
[350733861,1738092965083,25900.81405293,0.00011884,2]
[350733862,1738092965441,25900.81405293,0.00011867,2]
[350733863,1738092971935,15573.134191,0.00011906,2]
[350733864,1738092972400,15573.134191,0.00011865,2]
[350733865,1738092972751,15573.134191,0.00011907,2]
[350733866,1738092973061,15573.134191,0.00011855,2]
[350733867,1738092973379,15573.134191,0.0001183,2]
[350733868,1738092978961,200.0,0.00011837,2]
[350733869,1738092979245,200.0,0.0001185,2]
[350733870,1738092985147,812.54873803,0.00011894,2]
[350733871,1738092985437,812.54873803,0.00011913,2]
[350733872,1738092985747,812.54873803,0.0001185,2]
[350733873,1738092986024,812.54873803,0.00011849,2]
[350733874,1738092986298,812.54873803,0.00011912,2]
[350733875,1738092993471,1414.60545809,0.00011857,2]
[350733876,1738092993768,1414.60545809,0.00011834,2]
[350733877,1738092994053,1414.60545809,0.00011904,2]
[350733878,1738092994346,1414.60545809,0.00011852,2]
[350733879,1738092994798,1414.60545809,0.00011847,2]
[350733880,1738093001601,200.0,0.00011914,2]
[350733881,1738093001902,200.0,0.00011834,2]
[350733882,1738093002308,200.0,0.000119,2]
[350733883,1738093009841,6295.68662643,0.0001189,2]
[350733884,1738093010403,6295.68662643,0.00011914,2]
[350733885,1738093010549,6295.68662643,0.0001191,2]
[350733886,1738093010697,6295.68662643,0.00011842,2]
[350733887,1738093010981,6295.68662643,0.00011828,2]
[350733888,1738093026981,8399.44741839,0.00011887,2]
[350733889,1738093027558,8399.44741839,0.00011842,2]
[350733890,1738093027721,8399.44741839,0.0001183,2]
[350733891,1738093027896,8399.44741839,0.00011865,2]
[350733892,1738093028217,8399.44741839,0.00011874,2]
[350733893,1738093034726,1091.68048,0.00011906,2]
[350733894,1738093035027,1091.68048,0.00011844,2]
[350733895,1738093035364,1091.68048,0.00011879,2]
[350733896,1738093035688,1091.68048,0.00011877,2]
[350733897,1738093035975,1091.68048,0.00011867,2]
[350733898,1738093043329,200.0,0.00011846,2]
[350733899,1738093051418,200.0,0.00011898,2]
[350733900,1738093051715,200.0,0.00011873,2]
[350733901,1738093052027,200.0,0.00011838,2]
[350733902,1738093059812,200.0,0.00011891,2]
[350733903,1738093086596,677.95081518,0.00011826,2]
[350733904,1738093086873,677.95081518,0.00011877,2]
[350733905,1738093087187,677.95081518,0.00011853,2]
[350733906,1738093087510,677.95081518,0.00011893,2]
[350733907,1738093087818,677.95081518,0.0001189,2]
[350733909,1738093326319,150.48,0.00010137,2]
[350733916,1738093593978,-339.32,0.00015753,2]
[350733917,1738093594001,-298.0488192,0.00016288,2]
[350733950,1738093832151,-601.9511808,0.00016288,2]
[350733951,1738093832161,-150.0,0.00016366,2]
[350733952,1738093832171,-175.12374396,0.000166,2]
[350733953,1738093832183,-1277.87625604,0.000166,2]
[350733954,1738093832446,-383.63097004,0.00017284,2]
[350733955,1738093832456,-500.0,0.00017384,2]
[350733956,1738093832467,-1000.0,0.00017409,2]
[350733957,1738093832476,-8.49277392,0.00017409,2]
[350733958,1738093832499,-550.0,0.00017409,2]
[350733959,1738093832511,-614.72573488,0.00017409,2]
[350733960,1738093832535,-872.6452512,0.00017409,2]
[350733961,1738093832544,-156.62,0.00017418,2]
[350733962,1738093832554,-156.62,0.00017435,2]
[350733963,1738093832564,-156.62,0.00017453,2]
[350733964,1738093832578,-636.66,0.00017466,2]
[350733965,1738093832588,-150.0,0.00017556,2]
[350733967,1738093832599,-1580.95096347,0.00017612,2]
[350733968,1738093832611,-427.62,0.00017612,2]
[350733969,1738093832623,-2063.52084559,0.00017612,2]
[350733970,1738093832634,-7960.91580602,0.00017612,2]
[350733972,1738093832651,-3342.09999,0.00017612,2]
[350733975,1738093832663,-6958.1129163,0.00017612,2]
[350733977,1738093832676,-1566.77947862,0.00017612,2]
[350733979,1738093832685,-1500.0,0.00017612,2]
[350733981,1738093832695,-232.23,0.0001762,2]
[350733983,1738093832706,-900.0,0.00017658,2]
[350733985,1738093832716,-2112.92,0.00017715,2]
[350733987,1738093832726,-475.26,0.00017757,2]
[350733989,1738093832736,-150.0,0.00017917,2]
[350733991,1738093832746,-150.0,0.00017917,2]
[350733993,1738093832756,-150.0,0.00017917,2]
[350733995,1738093832767,-277.26,0.00017942,2]
[350733997,1738093832777,-173.12,0.00017959,2]
[350734000,1738093832788,-339.32,0.00018017,2]
[350734002,1738093832798,-187.74,0.00018146,30]
[350734004,1738093832808,-500.0,0.000183,6]
[350734006,1738093832819,-1100.0,0.000184,6]
[350734008,1738093832832,-1600.0,0.000185,6]
[350734011,1738093832842,-168.94,0.0001856,2]
[350734013,1738093832853,-2200.0,0.000186,6]
[350734015,1738093832863,-1940.48214548,0.000187,6]
[350734017,1738093832875,-340.34,0.000187,6]
[350734019,1738093832887,-419.17785452,0.000187,6]
[350734021,1738093832898,-900.0,0.00018754,2]
[350734022,1738093832908,-300.0,0.00018799,2]
[350734023,1738093832918,-575.35595417,0.000188,2]
[350734024,1738093832930,-413.21193929,0.000188,2]
[350734025,1738093832941,-575.55710654,0.000188,2]
[350734026,1738093832951,-2428.3879,0.000188,2]
[350734027,1738093832961,-3779.23984226,0.000188,2]
[350734028,1738093832972,-2500.0,0.000188,2]
[350734029,1738093832983,-193.04325019,0.000188,2]
[350734030,1738093832993,-500.0,0.000188,6]
[350734031,1738093833003,-961.0519509,0.00018804,2]
[350734032,1738093833014,-3000.0,0.0001881,2]
[350734033,1738093833025,-281.67849721,0.00018822,2]
[350734034,1738093833035,-3779.23984226,0.00018831,2]
[350734035,1738093833045,-3779.23984226,0.00018862,2]
[350734036,1738093833055,-3779.23984226,0.00018893,2]
[350734037,1738093833066,-155.53056541,0.000189,2]
[350734038,1738093833076,-2512.0142,0.000189,2]
[350734039,1738093833086,-1000.0,0.000189,2]
[350734040,1738093833097,-500.0,0.000189,2]
[350734041,1738093833108,-426.447,0.000189,2]
[350734042,1738093833119,-3252.2547,0.000189,2]
[350734043,1738093833130,-1994.6198,0.000189,2]
[350734044,1738093833146,-88643.17591574,0.000189,2]
[350734045,1738093833159,-49621.30201054,0.000189,2]
[350734046,1738093833173,-48938.75097372,0.000189,2]
[350734047,1738093833184,-793.5007,0.000189,2]
[350734048,1738093833194,-500.0,0.000189,6]
[350734049,1738093833205,-176.48212706,0.000189,2]
[350734050,1738093833216,-1833.25842139,0.000189,2]
[350734051,1738093833227,-1000.0,0.00018904,9]
[350734052,1738093833237,-199.0,0.00018908,2]
[350734053,1738093833248,-1833.25842137,0.0001892,2]
[350734054,1738093833259,-450.81,0.00018923,2]
[350734055,1738093833270,-3779.23984226,0.00018924,2]
[350734056,1738093833281,-193.04325019,0.00018938,2]
[350734057,1738093833291,-1833.25842137,0.0001894,2]
[350734058,1738093833302,-3779.23984226,0.00018954,2]
[350734059,1738093833312,-1833.25842137,0.00018959,2]
[350734060,1738093833322,-500.0,0.00018973,2]
[350734061,1738093833335,-3779.23984226,0.00018985,2]
[350734062,1738093833347,-383527.1588484,0.00019,2]
[350734063,1738093833360,-163960.19167007,0.00019,2]
[350734064,1738093834253,-457.32324151,0.00019,2]
[350734065,1738093834270,-156.62,0.0001747,2]
[350734066,1738093834289,-1788.93950178,0.00019,2]
[350734067,1738093834312,-329.7,0.00019,2]
[350734068,1738093834328,-941.96454601,0.00019,2]
[350734070,1738093837908,-156.62,0.00017488,2]
[350734071,1738093837919,-156.62,0.00017505,2]
[350734072,1738093837930,-17.78436565,0.00018979,2]
[350734073,1738093837942,-317.21379945,0.00018979,2]
[350734074,1738093837962,-1498.26025627,0.00018979,2]
[350734075,1738093837972,-3351.739708,0.00019,2]